[Event "Titled Tuesday Blitz May 9 Late 2023"]
[White "ArtemDyachuk"]
[Black "Gasparyan, David"]
[BlackFideId "13311980"]
[WhiteElo "2518"]
[BlackElo "2409"]
[Result "0-1"]
[Round "07"]
[TimeControl "180+2"]
[Date "2023.05.09"]
[WhiteClock "0:01:37"]
[BlackClock "0:01:25"]

1. Nf3 {[%clk 0:03:00]}  d5 {[%clk 0:02:49]} 2. e3 {[%clk 0:03:00]}  Nf6 {[%clk 0:02:48]} 3. b3 {[%clk 0:03:00]}  Bg4 {[%clk 0:02:49]} 4. Bb2 {[%clk 0:02:59]}  Nc6 {[%clk 0:02:49]} 5. Bb5 {[%clk 0:02:55]}  Bxf3 {[%clk 0:02:42]} 6. Qxf3 {[%clk 0:02:54]}  Qd6 {[%clk 0:02:43]} 7. O-O {[%clk 0:02:52]}  e5 {[%clk 0:02:40]} 8. Bxc6+ {[%clk 0:02:49]}  bxc6 {[%clk 0:02:39]} 9. d4 {[%clk 0:02:49]}  e4 {[%clk 0:02:39]} 10. Qe2 {[%clk 0:02:46]}  Be7 {[%clk 0:02:36]} 11. c4 {[%clk 0:02:41]}  h5 {[%clk 0:02:30]} 12. Nc3 {[%clk 0:02:37]}  a6 {[%clk 0:02:27]} 13. Rac1 {[%clk 0:02:36]}  Ng4 {[%clk 0:02:23]} 14. g3 {[%clk 0:02:32]}  f5 {[%clk 0:02:09]} 15. Na4 {[%clk 0:02:25]}  h4 {[%clk 0:02:04]} 16. f4 {[%clk 0:01:56]}  hxg3 {[%clk 0:01:57]} 17. hxg3 {[%clk 0:01:55]}  Qh6 {[%clk 0:01:57]} 18. Qg2 {[%clk 0:01:54]}  Nxe3 {[%clk 0:01:58]} 19. Qe2 {[%clk 0:01:44]}  Nxf1 {[%clk 0:01:28]} 20. Rxf1 {[%clk 0:01:42]}  Qh1+ {[%clk 0:01:27]} 21. Kf2 {[%clk 0:01:38]}  Rh2+ {[%clk 0:01:28]} 22. Ke1 {[%clk 0:01:38]}  Rxe2+ {[%clk 0:01:27]} 23. Kxe2 {[%clk 0:01:39]}  Qg2+ {[%clk 0:01:26]} 24. Rf2 {[%clk 0:01:39]}  Qxg3 {[%clk 0:01:26]} 25. Bc1 {[%clk 0:01:40]}  Qd3+ {[%clk 0:01:24]} 26. Ke1 {[%clk 0:01:39]}  e3 {[%clk 0:01:25]} 27. Re2 {[%clk 0:01:37]}  Bh4+ {[%clk 0:01:25]} 0-1


[Site "https://www.chess.com"]

[Event "Titled Tuesday Blitz May 9 Late 2023"]
[White "Arnold, Ken"]
[Black "Grinev, Valeriy"]
[WhiteFideId "2056836"]
[BlackFideId "14117517"]
[WhiteElo "2391"]
[BlackElo "2366"]
[Result "0-1"]
[Round "07"]
[TimeControl "180+2"]
[Date "2023.05.09"]
[WhiteClock "0:00:05"]
[BlackClock "0:01:35"]

1. d4 {[%clk 0:03:00]}  c5 {[%clk 0:03:00]} 2. dxc5 {[%clk 0:02:59]}  e6 {[%clk 0:03:00]} 3. Nf3 {[%clk 0:02:59]}  Bxc5 {[%clk 0:03:01]} 4. e3 {[%clk 0:02:59]}  Nc6 {[%clk 0:03:00]} 5. Be2 {[%clk 0:03:00]}  Nf6 {[%clk 0:03:00]} 6. O-O {[%clk 0:03:00]}  d5 {[%clk 0:03:01]} 7. a3 {[%clk 0:03:00]}  O-O {[%clk 0:03:01]} 8. Nbd2 {[%clk 0:02:57]}  a5 {[%clk 0:03:01]} 9. a4 {[%clk 0:02:56]}  b6 {[%clk 0:02:59]} 10. c3 {[%clk 0:02:55]}  Ba6 {[%clk 0:02:59]} 11. Nb3 {[%clk 0:02:55]}  Bxe2 {[%clk 0:02:58]} 12. Qxe2 {[%clk 0:02:55]}  Be7 {[%clk 0:02:59]} 13. Nbd4 {[%clk 0:02:54]}  Nxd4 {[%clk 0:02:58]} 14. Nxd4 {[%clk 0:02:54]}  Qd7 {[%clk 0:02:57]} 15. Qb5 {[%clk 0:02:53]}  Qxb5 {[%clk 0:02:57]} 16. Nxb5 {[%clk 0:02:52]}  Rfc8 {[%clk 0:02:54]} 17. b3 {[%clk 0:02:45]}  Ne4 {[%clk 0:02:51]} 18. Ba3 {[%clk 0:02:09]}  Bxa3 {[%clk 0:02:46]} 19. Rxa3 {[%clk 0:02:06]}  Nxc3 {[%clk 0:02:43]} 20. Nd4 {[%clk 0:02:03]}  Ne4 {[%clk 0:02:38]} 21. f3 {[%clk 0:02:02]}  Nd6 {[%clk 0:02:29]} 22. Ra2 {[%clk 0:01:51]}  Rc3 {[%clk 0:02:28]} 23. Kf2 {[%clk 0:01:47]}  Rac8 {[%clk 0:02:27]} 24. Rb1 {[%clk 0:01:37]}  g5 {[%clk 0:02:26]} 25. Rab2 {[%clk 0:01:33]}  e5 {[%clk 0:02:16]} 26. Ne2 {[%clk 0:01:32]}  Rc2 {[%clk 0:02:11]} 27. Rxc2 {[%clk 0:01:24]}  Rxc2 {[%clk 0:02:11]} 28. Rc1 {[%clk 0:01:24]}  Rxc1 {[%clk 0:02:10]} 29. Nxc1 {[%clk 0:01:25]}  f6 {[%clk 0:02:07]} 30. Ke2 {[%clk 0:01:19]}  Kf7 {[%clk 0:02:06]} 31. Kd3 {[%clk 0:01:18]}  Ke6 {[%clk 0:02:07]} 32. Ne2 {[%clk 0:01:11]}  h5 {[%clk 0:02:05]} 33. h3 {[%clk 0:01:10]}  h4 {[%clk 0:02:06]} 34. Nc3 {[%clk 0:01:08]}  f5 {[%clk 0:02:03]} 35. Ne2 {[%clk 0:00:56]}  f4 {[%clk 0:01:57]} 36. exf4 {[%clk 0:00:52]}  gxf4 {[%clk 0:01:56]} 37. Nc3 {[%clk 0:00:51]}  Nf5 {[%clk 0:01:51]} 38. Nb5 {[%clk 0:00:47]}  Ne3 {[%clk 0:01:49]} 39. Nc7+ {[%clk 0:00:43]}  Kd6 {[%clk 0:01:49]} 40. Ne8+ {[%clk 0:00:39]}  Kc5 {[%clk 0:01:49]} 41. Ng7 {[%clk 0:00:23]}  Nxg2 {[%clk 0:01:47]} 42. Nf5 {[%clk 0:00:20]}  Kb4 {[%clk 0:01:44]} 43. Kc2 {[%clk 0:00:20]}  e4 {[%clk 0:01:42]} 44. fxe4 {[%clk 0:00:19]}  dxe4 {[%clk 0:01:43]} 45. Nd6 {[%clk 0:00:19]}  e3 {[%clk 0:01:40]} 46. Kd3 {[%clk 0:00:10]}  f3 {[%clk 0:01:37]} 47. Ne4 {[%clk 0:00:05]}  e2 {[%clk 0:01:35]} 0-1


[Site "https://www.chess.com"]

[Event "Titled Tuesday Blitz May 9 Late 2023"]
[White "Hoffmann, Asa"]
[Black "Bilan, Danila"]
[WhiteFideId "2001470"]
[BlackFideId "24161918"]
[WhiteElo "2117"]
[BlackElo "2182"]
[Result "1-0"]
[Round "07"]
[TimeControl "180+2"]
[Date "2023.05.09"]
[WhiteClock "0:01:49"]
[BlackClock "0:00:05"]

1. d4 {[%clk 0:02:56]}  d5 {[%clk 0:02:57]} 2. Bg5 {[%clk 0:02:55]}  Nf6 {[%clk 0:02:56]} 3. Nd2 {[%clk 0:02:54]}  Bf5 {[%clk 0:02:54]} 4. e3 {[%clk 0:02:53]}  e6 {[%clk 0:02:40]} 5. c4 {[%clk 0:02:48]}  c6 {[%clk 0:02:39]} 6. Qb3 {[%clk 0:02:47]}  Qc8 {[%clk 0:02:25]} 7. Rc1 {[%clk 0:02:42]}  Nbd7 {[%clk 0:02:18]} 8. Ngf3 {[%clk 0:02:40]}  Bd6 {[%clk 0:02:15]} 9. Be2 {[%clk 0:02:34]}  O-O {[%clk 0:02:11]} 10. O-O {[%clk 0:02:33]}  h6 {[%clk 0:01:36]} 11. Bh4 {[%clk 0:02:33]}  Qc7 {[%clk 0:01:23]} 12. Bg3 {[%clk 0:02:31]}  Rab8 {[%clk 0:01:18]} 13. Bd3 {[%clk 0:02:28]}  Ne4 {[%clk 0:01:04]} 14. Bxe4 {[%clk 0:02:24]}  dxe4 {[%clk 0:01:04]} 15. Ne1 {[%clk 0:02:18]}  e5 {[%clk 0:00:56]} 16. c5 {[%clk 0:02:14]}  Be7 {[%clk 0:00:55]} 17. Nc4 {[%clk 0:02:13]}  Be6 {[%clk 0:00:45]} 18. Qc3 {[%clk 0:02:13]}  f6 {[%clk 0:00:21]} 19. Nc2 {[%clk 0:02:06]}  b5 {[%clk 0:00:14]} 20. cxb6 {[%clk 0:02:04]}  axb6 {[%clk 0:00:14]} 21. b3 {[%clk 0:01:59]}  Ra8 {[%clk 0:00:09]} 22. a4 {[%clk 0:01:58]}  b5 {[%clk 0:00:09]} 23. Nb2 {[%clk 0:01:52]}  exd4 {[%clk 0:00:09]} 24. Nxd4 {[%clk 0:01:51]}  Ne5 {[%clk 0:00:07]} 25. Nxe6 {[%clk 0:01:50]}  Rfc8 {[%clk 0:00:05]} 26. Nxc7 {[%clk 0:01:49]} 1-0


[Site "https://www.chess.com"]

[Event "Titled Tuesday Blitz May 9 Late 2023"]
[White "Pavlidou, Ekaterini"]
[Black "Dragomirescu, Robin-Alexandru"]
[WhiteFideId "4213262"]
[BlackFideId "1213849"]
[WhiteElo "2126"]
[BlackElo "2356"]
[Result "1-0"]
[Round "07"]
[TimeControl "180+2"]
[Date "2023.05.09"]
[WhiteClock "0:00:21"]
[BlackClock "0:00:05"]

1. d4 {[%clk 0:02:57]}  Nf6 {[%clk 0:02:59]} 2. c4 {[%clk 0:02:56]}  e6 {[%clk 0:02:58]} 3. Nc3 {[%clk 0:02:55]}  Bb4 {[%clk 0:02:58]} 4. e3 {[%clk 0:02:55]}  O-O {[%clk 0:02:58]} 5. Nf3 {[%clk 0:02:55]}  d5 {[%clk 0:02:58]} 6. Bd2 {[%clk 0:02:55]}  b6 {[%clk 0:02:57]} 7. cxd5 {[%clk 0:02:40]}  Nxd5 {[%clk 0:02:50]} 8. e4 {[%clk 0:02:35]}  Nxc3 {[%clk 0:02:48]} 9. bxc3 {[%clk 0:02:35]}  Be7 {[%clk 0:02:49]} 10. Bd3 {[%clk 0:02:28]}  c5 {[%clk 0:02:49]} 11. O-O {[%clk 0:02:26]}  Bb7 {[%clk 0:02:49]} 12. e5 {[%clk 0:02:23]}  Nc6 {[%clk 0:02:48]} 13. Be4 {[%clk 0:02:17]}  Na5 {[%clk 0:02:43]} 14. Re1 {[%clk 0:02:06]}  Nc4 {[%clk 0:02:39]} 15. Bxb7 {[%clk 0:02:01]}  Rb8 {[%clk 0:02:39]} 16. Be4 {[%clk 0:01:53]}  g6 {[%clk 0:02:38]} 17. Bh6 {[%clk 0:01:52]}  Re8 {[%clk 0:02:38]} 18. dxc5 {[%clk 0:01:52]}  Bxc5 {[%clk 0:02:36]} 19. Qxd8 {[%clk 0:01:50]}  Rexd8 {[%clk 0:02:37]} 20. Rad1 {[%clk 0:01:49]}  Ba3 {[%clk 0:02:30]} 21. Bg5 {[%clk 0:01:43]}  Rdc8 {[%clk 0:02:30]} 22. Bf6 {[%clk 0:01:40]}  b5 {[%clk 0:02:21]} 23. Rd7 {[%clk 0:01:39]}  a5 {[%clk 0:02:19]} 24. Ng5 {[%clk 0:01:34]}  Rf8 {[%clk 0:02:19]} 25. h4 {[%clk 0:01:32]}  Rb6 {[%clk 0:02:14]} 26. h5 {[%clk 0:01:30]}  Bb2 {[%clk 0:02:14]} 27. hxg6 {[%clk 0:01:23]}  hxg6 {[%clk 0:02:15]} 28. Be7 {[%clk 0:01:20]}  Bxc3 {[%clk 0:02:05]} 29. Rc1 {[%clk 0:01:16]}  Nxe5 {[%clk 0:01:57]} 30. Rc7 {[%clk 0:01:09]}  b4 {[%clk 0:01:45]} 31. Bxf8 {[%clk 0:01:03]}  Kxf8 {[%clk 0:01:46]} 32. R7xc3 {[%clk 0:01:03]}  bxc3 {[%clk 0:01:46]} 33. Rxc3 {[%clk 0:01:03]}  f5 {[%clk 0:01:27]} 34. Bc2 {[%clk 0:01:00]}  Ng4 {[%clk 0:01:05]} 35. f3 {[%clk 0:00:57]}  Nf6 {[%clk 0:01:02]} 36. Bb3 {[%clk 0:00:52]}  e5 {[%clk 0:01:02]} 37. Rc5 {[%clk 0:00:50]}  a4 {[%clk 0:00:43]} 38. Bxa4 {[%clk 0:00:49]}  Rb2 {[%clk 0:00:44]} 39. Rc2 {[%clk 0:00:49]}  Rb1+ {[%clk 0:00:43]} 40. Kf2 {[%clk 0:00:48]}  Nh5 {[%clk 0:00:43]} 41. Rc7 {[%clk 0:00:44]}  Nf4 {[%clk 0:00:42]} 42. Bb3 {[%clk 0:00:26]}  Rb2+ {[%clk 0:00:33]} 43. Rc2 {[%clk 0:00:25]}  Nd3+ {[%clk 0:00:28]} 44. Ke3 {[%clk 0:00:25]}  Rxc2 {[%clk 0:00:28]} 45. Bxc2 {[%clk 0:00:25]}  Ne1 {[%clk 0:00:29]} 46. Bb3 {[%clk 0:00:25]}  Nxg2+ {[%clk 0:00:29]} 47. Kf2 {[%clk 0:00:23]}  Nf4 {[%clk 0:00:28]} 48. Ne6+ {[%clk 0:00:23]}  Nxe6 {[%clk 0:00:27]} 49. Bxe6 {[%clk 0:00:23]}  Ke7 {[%clk 0:00:28]} 50. Bd5 {[%clk 0:00:22]}  g5 {[%clk 0:00:15]} 51. Ke3 {[%clk 0:00:21]}  Kd6 {[%clk 0:00:16]} 52. Bf7 {[%clk 0:00:20]}  g4 {[%clk 0:00:06]} 53. fxg4 {[%clk 0:00:20]}  fxg4 {[%clk 0:00:07]} 54. Ke4 {[%clk 0:00:20]}  Kc5 {[%clk 0:00:04]} 55. Be6 {[%clk 0:00:20]}  g3 {[%clk 0:00:04]} 56. Kf3 {[%clk 0:00:20]}  Kd6 {[%clk 0:00:02]} 57. Bb3 {[%clk 0:00:19]}  e4+ {[%clk 0:00:01]} 58. Kxg3 {[%clk 0:00:19]}  Kc5 {[%clk 0:00:01]} 59. Kf2 {[%clk 0:00:19]}  Kd4 {[%clk 0:00:02]} 60. Ke2 {[%clk 0:00:19]}  e3 {[%clk 0:00:03]} 61. Ke1 {[%clk 0:00:19]}  Kd3 {[%clk 0:00:03]} 62. Kd1 {[%clk 0:00:20]}  Kd4 {[%clk 0:00:03]} 63. Ke2 {[%clk 0:00:20]}  Ke4 {[%clk 0:00:04]} 64. Bf7 {[%clk 0:00:20]}  Kd4 {[%clk 0:00:05]} 65. Bg6 {[%clk 0:00:20]}  Kc3 {[%clk 0:00:05]} 66. Kxe3 {[%clk 0:00:20]}  Kb4 {[%clk 0:00:06]} 67. Bf7 {[%clk 0:00:20]}  Ka3 {[%clk 0:00:05]} 68. Kd4 {[%clk 0:00:21]} 1-0


[Site "https://www.chess.com"]

[Event "Titled Tuesday Blitz May 9 Late 2023"]
[White "Tifferet, Shaked"]
[Black "Sarkar, Justin"]
[WhiteFideId "2811529"]
[BlackFideId "2010011"]
[WhiteElo "2142"]
[BlackElo "2168"]
[Result "0-1"]
[Round "07"]
[TimeControl "180+2"]
[Date "2023.05.09"]
[WhiteClock "0:00:20"]
[BlackClock "0:00:17"]

1. d4 {[%clk 0:03:00]}  Nf6 {[%clk 0:02:56]} 2. Nf3 {[%clk 0:02:57]}  d5 {[%clk 0:02:45]} 3. Bf4 {[%clk 0:02:56]}  c5 {[%clk 0:02:42]} 4. e3 {[%clk 0:02:54]}  Nc6 {[%clk 0:02:42]} 5. Nc3 {[%clk 0:02:52]}  cxd4 {[%clk 0:02:35]} 6. exd4 {[%clk 0:02:53]}  Bg4 {[%clk 0:02:35]} 7. Be2 {[%clk 0:02:43]}  e6 {[%clk 0:02:34]} 8. Ne5 {[%clk 0:02:34]}  Bxe2 {[%clk 0:02:25]} 9. Nxe2 {[%clk 0:02:35]}  Nxe5 {[%clk 0:02:21]} 10. Bxe5 {[%clk 0:02:32]}  Nd7 {[%clk 0:02:15]} 11. Bg3 {[%clk 0:02:30]}  Qb6 {[%clk 0:02:13]} 12. O-O {[%clk 0:02:16]}  Qxb2 {[%clk 0:02:01]} 13. Rb1 {[%clk 0:02:15]}  Qxa2 {[%clk 0:02:00]} 14. Rxb7 {[%clk 0:02:14]}  Qa6 {[%clk 0:01:58]} 15. Rb3 {[%clk 0:01:56]}  Bd6 {[%clk 0:01:55]} 16. Qa1 {[%clk 0:01:44]}  Qc6 {[%clk 0:01:24]} 17. Bxd6 {[%clk 0:01:23]}  Qxd6 {[%clk 0:01:23]} 18. Rb7 {[%clk 0:01:23]}  O-O {[%clk 0:01:18]} 19. Rxa7 {[%clk 0:01:23]}  Rxa7 {[%clk 0:01:18]} 20. Qxa7 {[%clk 0:01:24]}  Rc8 {[%clk 0:01:16]} 21. c3 {[%clk 0:01:22]}  Qc6 {[%clk 0:01:14]} 22. h4 {[%clk 0:01:10]}  Ra8 {[%clk 0:01:07]} 23. Qxa8+ {[%clk 0:01:01]}  Qxa8 {[%clk 0:01:07]} 24. Rb1 {[%clk 0:00:59]}  h5 {[%clk 0:01:04]} 25. Nf4 {[%clk 0:00:58]}  Nf6 {[%clk 0:01:02]} 26. f3 {[%clk 0:00:48]}  Qa3 {[%clk 0:01:00]} 27. Rb8+ {[%clk 0:00:46]}  Kh7 {[%clk 0:01:00]} 28. Ne2 {[%clk 0:00:42]}  Nd7 {[%clk 0:00:54]} 29. Rc8 {[%clk 0:00:42]}  Nb6 {[%clk 0:00:53]} 30. Rc7 {[%clk 0:00:38]}  f6 {[%clk 0:00:40]} 31. Kh2 {[%clk 0:00:37]}  Nc4 {[%clk 0:00:37]} 32. Nf4 {[%clk 0:00:35]}  Qxc3 {[%clk 0:00:32]} 33. Nxe6 {[%clk 0:00:31]}  Qe1 {[%clk 0:00:31]} 34. Nxg7 {[%clk 0:00:24]}  Qxh4+ {[%clk 0:00:29]} 35. Kg1 {[%clk 0:00:23]}  Qxd4+ {[%clk 0:00:29]} 36. Kh1 {[%clk 0:00:21]}  Kg6 {[%clk 0:00:26]} 37. Ne6 {[%clk 0:00:20]}  Qh4+ {[%clk 0:00:25]} 38. Kg1 {[%clk 0:00:20]}  Qe1+ {[%clk 0:00:25]} 39. Kh2 {[%clk 0:00:20]}  Qxe6 {[%clk 0:00:26]} 40. g4 {[%clk 0:00:20]}  Qd6+ {[%clk 0:00:25]} 41. Kh3 {[%clk 0:00:18]}  hxg4+ {[%clk 0:00:24]} 42. fxg4 {[%clk 0:00:18]}  Qxc7 {[%clk 0:00:23]} 43. g5 {[%clk 0:00:18]}  fxg5 {[%clk 0:00:23]} 44. Kg4 {[%clk 0:00:19]}  Ne3+ {[%clk 0:00:21]} 45. Kf3 {[%clk 0:00:19]}  Qf4+ {[%clk 0:00:20]} 46. Ke2 {[%clk 0:00:19]}  Qe4 {[%clk 0:00:19]} 47. Kf2 {[%clk 0:00:19]}  d4 {[%clk 0:00:19]} 48. Kg3 {[%clk 0:00:20]}  Qg2# {[%clk 0:00:17]} 0-1


[Site "https://www.chess.com"]

[Event "Titled Tuesday Blitz May 9 Late 2023"]
[White "Souza, Adwilhans Luciano"]
[Black "Guz, Ari"]
[WhiteFideId "2101793"]
[BlackFideId "2825759"]
[WhiteElo "2288"]
[BlackElo "2205"]
[Result "0-1"]
[Round "07"]
[TimeControl "180+2"]
[Date "2023.05.09"]
[WhiteClock "0:00:00"]
[BlackClock "0:00:53"]

1. e4 {[%clk 0:02:59]}  Nf6 {[%clk 0:02:53]} 2. e5 {[%clk 0:02:59]}  Nd5 {[%clk 0:02:54]} 3. d4 {[%clk 0:02:59]}  d6 {[%clk 0:02:55]} 4. Nf3 {[%clk 0:02:59]}  Bg4 {[%clk 0:02:53]} 5. Be2 {[%clk 0:02:59]}  e6 {[%clk 0:02:52]} 6. O-O {[%clk 0:02:58]}  Nc6 {[%clk 0:02:52]} 7. exd6 {[%clk 0:02:50]}  Bxd6 {[%clk 0:02:52]} 8. c4 {[%clk 0:02:50]}  Nf6 {[%clk 0:02:52]} 9. h3 {[%clk 0:02:48]}  Bh5 {[%clk 0:02:52]} 10. Be3 {[%clk 0:02:47]}  O-O {[%clk 0:02:50]} 11. Nc3 {[%clk 0:02:46]}  a6 {[%clk 0:02:42]} 12. Qd2 {[%clk 0:02:33]}  Bb4 {[%clk 0:02:39]} 13. Qc2 {[%clk 0:02:20]}  Bxf3 {[%clk 0:02:31]} 14. Bxf3 {[%clk 0:02:18]}  Nxd4 {[%clk 0:02:31]} 15. Bxd4 {[%clk 0:02:18]}  Qxd4 {[%clk 0:02:32]} 16. Bxb7 {[%clk 0:02:17]}  Ra7 {[%clk 0:02:30]} 17. Ne2 {[%clk 0:02:08]}  Qe5 {[%clk 0:01:58]} 18. Bf3 {[%clk 0:02:01]}  Rb8 {[%clk 0:01:58]} 19. g3 {[%clk 0:01:51]}  Bc5 {[%clk 0:01:55]} 20. b3 {[%clk 0:01:47]}  h5 {[%clk 0:01:55]} 21. Rfe1 {[%clk 0:01:34]}  h4 {[%clk 0:01:54]} 22. g4 {[%clk 0:01:16]}  Bd6 {[%clk 0:01:51]} 23. Bg2 {[%clk 0:01:13]}  Qh2+ {[%clk 0:01:50]} 24. Kf1 {[%clk 0:01:13]}  c5 {[%clk 0:01:40]} 25. Rad1 {[%clk 0:01:07]}  Rd8 {[%clk 0:01:37]} 26. Nc3 {[%clk 0:01:06]}  Rad7 {[%clk 0:01:27]} 27. Ne4 {[%clk 0:00:55]}  Nxe4 {[%clk 0:01:27]} 28. Qxe4 {[%clk 0:00:54]}  Bf4 {[%clk 0:01:28]} 29. Qe2 {[%clk 0:00:52]}  Rd2 {[%clk 0:01:24]} 30. Rxd2 {[%clk 0:00:52]}  Rxd2 {[%clk 0:01:24]} 31. Qf3 {[%clk 0:00:52]}  Rxa2 {[%clk 0:01:11]} 32. Rd1 {[%clk 0:00:49]}  g5 {[%clk 0:01:07]} 33. Qb7 {[%clk 0:00:38]}  Be5 {[%clk 0:01:00]} 34. Rd8+ {[%clk 0:00:19]}  Kg7 {[%clk 0:00:59]} 35. Qe7 {[%clk 0:00:18]}  Qf4 {[%clk 0:00:54]} 36. Qf8+ {[%clk 0:00:17]}  Kg6 {[%clk 0:00:54]} 37. Qg8+ {[%clk 0:00:00]}  Bg7 {[%clk 0:00:53]} 0-1


[Site "https://www.chess.com"]

[Event "Titled Tuesday Blitz May 9 Late 2023"]
[White "Rodriguez Santiago, Jaime"]
[Black "Jonkman, Harmen"]
[WhiteFideId "3100898"]
[BlackFideId "1002708"]
[WhiteElo "2025"]
[BlackElo "2368"]
[Result "0-1"]
[Round "07"]
[TimeControl "180+2"]
[Date "2023.05.09"]
[WhiteClock "0:00:55"]
[BlackClock "0:00:08"]

1. c4 {[%clk 0:03:00]}  Nf6 {[%clk 0:02:58]} 2. Nc3 {[%clk 0:03:00]}  e6 {[%clk 0:02:58]} 3. e4 {[%clk 0:02:59]}  d5 {[%clk 0:02:57]} 4. e5 {[%clk 0:02:59]}  Nfd7 {[%clk 0:02:54]} 5. d4 {[%clk 0:02:58]}  dxc4 {[%clk 0:02:53]} 6. Bxc4 {[%clk 0:02:57]}  Nb6 {[%clk 0:02:53]} 7. Bb3 {[%clk 0:02:55]}  c5 {[%clk 0:02:49]} 8. Nf3 {[%clk 0:02:48]}  cxd4 {[%clk 0:02:24]} 9. Qxd4 {[%clk 0:02:44]}  Qxd4 {[%clk 0:02:18]} 10. Nxd4 {[%clk 0:02:45]}  a6 {[%clk 0:02:15]} 11. Be3 {[%clk 0:02:41]}  N6d7 {[%clk 0:02:14]} 12. f4 {[%clk 0:02:39]}  b5 {[%clk 0:02:05]} 13. Rc1 {[%clk 0:02:34]}  Bb7 {[%clk 0:02:04]} 14. Kf2 {[%clk 0:02:29]}  Bc5 {[%clk 0:01:59]} 15. a4 {[%clk 0:02:27]}  b4 {[%clk 0:01:56]} 16. Nb1 {[%clk 0:02:25]}  Ke7 {[%clk 0:01:45]} 17. Nd2 {[%clk 0:02:19]}  Rc8 {[%clk 0:01:43]} 18. Nc4 {[%clk 0:02:17]}  Bd5 {[%clk 0:01:39]} 19. Rhd1 {[%clk 0:02:15]}  Nc6 {[%clk 0:01:25]} 20. Nxc6+ {[%clk 0:02:09]}  Rxc6 {[%clk 0:01:23]} 21. Bxc5+ {[%clk 0:02:05]}  Rxc5 {[%clk 0:01:22]} 22. Ne3 {[%clk 0:02:00]}  Bxb3 {[%clk 0:01:08]} 23. Rxd7+ {[%clk 0:02:00]}  Kxd7 {[%clk 0:01:07]} 24. Rxc5 {[%clk 0:02:00]}  Bxa4 {[%clk 0:01:04]} 25. Rc4 {[%clk 0:01:57]}  a5 {[%clk 0:00:59]} 26. Rd4+ {[%clk 0:01:57]}  Kc6 {[%clk 0:00:55]} 27. Rd6+ {[%clk 0:01:56]}  Kc5 {[%clk 0:00:54]} 28. Ke2 {[%clk 0:01:47]}  Bb5+ {[%clk 0:00:40]} 29. Kd2 {[%clk 0:01:46]}  a4 {[%clk 0:00:41]} 30. Kc2 {[%clk 0:01:40]}  a3 {[%clk 0:00:40]} 31. bxa3 {[%clk 0:01:38]}  Rxa3 {[%clk 0:00:35]} 32. Nd1 {[%clk 0:01:32]}  Ba4+ {[%clk 0:00:30]} 33. Kb2 {[%clk 0:01:29]}  Rb3+ {[%clk 0:00:26]} 34. Ka2 {[%clk 0:01:28]}  Ra3+ {[%clk 0:00:24]} 35. Kb2 {[%clk 0:01:28]}  Bxd1 {[%clk 0:00:21]} 36. Rxd1 {[%clk 0:01:28]}  Re3 {[%clk 0:00:20]} 37. Rd2 {[%clk 0:01:26]}  b3 {[%clk 0:00:18]} 38. g3 {[%clk 0:01:25]}  Kc4 {[%clk 0:00:17]} 39. Rg2 {[%clk 0:01:13]}  h5 {[%clk 0:00:17]} 40. Rd2 {[%clk 0:01:11]}  g6 {[%clk 0:00:15]} 41. Rg2 {[%clk 0:01:11]}  Rf3 {[%clk 0:00:15]} 42. Rd2 {[%clk 0:01:10]}  h4 {[%clk 0:00:15]} 43. Rd7 {[%clk 0:01:02]}  Rf2+ {[%clk 0:00:13]} 44. Kb1 {[%clk 0:01:03]}  Rxh2 {[%clk 0:00:13]} 45. gxh4 {[%clk 0:01:03]}  Kc3 {[%clk 0:00:09]} 46. Rc7+ {[%clk 0:01:03]}  Kd3 {[%clk 0:00:10]} 47. Rxf7 {[%clk 0:01:03]}  Rxh4 {[%clk 0:00:08]} 48. Rf6 {[%clk 0:01:01]}  Kc3 {[%clk 0:00:08]} 49. Rxe6 {[%clk 0:00:55]}  Rh1# {[%clk 0:00:08]} 0-1


[Site "https://www.chess.com"]

[Event "Titled Tuesday Blitz May 9 Late 2023"]
[White "Joubert, Dantelle"]
[Black "cristianserban1"]
[WhiteFideId "14310813"]
[WhiteElo "1507"]
[BlackElo "2499"]
[Result "0-1"]
[Round "07"]
[TimeControl "180+2"]
[Date "2023.05.09"]
[WhiteClock "0:00:01"]
[BlackClock "0:00:08"]

1. d4 {[%clk 0:02:59]}  g6 {[%clk 0:03:00]} 2. e4 {[%clk 0:02:57]}  Bg7 {[%clk 0:03:00]} 3. Nc3 {[%clk 0:02:57]}  a6 {[%clk 0:03:00]} 4. Be3 {[%clk 0:02:56]}  c6 {[%clk 0:02:58]} 5. Qd2 {[%clk 0:02:53]}  d5 {[%clk 0:02:56]} 6. e5 {[%clk 0:02:52]}  h5 {[%clk 0:02:41]} 7. O-O-O {[%clk 0:02:51]}  Nh6 {[%clk 0:02:41]} 8. h3 {[%clk 0:02:50]}  Nf5 {[%clk 0:02:41]} 9. Bg5 {[%clk 0:02:48]}  Bh6 {[%clk 0:02:40]} 10. Nf3 {[%clk 0:02:29]}  Bxg5 {[%clk 0:02:34]} 11. Nxg5 {[%clk 0:02:29]}  Ng7 {[%clk 0:02:31]} 12. Bd3 {[%clk 0:02:27]}  e6 {[%clk 0:02:21]} 13. g4 {[%clk 0:02:23]}  h4 {[%clk 0:02:20]} 14. f4 {[%clk 0:02:22]}  c5 {[%clk 0:02:06]} 15. dxc5 {[%clk 0:02:14]}  Nc6 {[%clk 0:02:06]} 16. Rhf1 {[%clk 0:02:08]}  Qe7 {[%clk 0:01:38]} 17. Qf2 {[%clk 0:02:05]}  Nxe5 {[%clk 0:01:33]} 18. fxe5 {[%clk 0:01:55]}  Qxg5+ {[%clk 0:01:33]} 19. Kb1 {[%clk 0:01:55]}  O-O {[%clk 0:01:32]} 20. Rde1 {[%clk 0:01:48]}  Bd7 {[%clk 0:01:32]} 21. Ne2 {[%clk 0:01:27]}  Rac8 {[%clk 0:01:16]} 22. Nd4 {[%clk 0:01:24]}  Qe7 {[%clk 0:01:05]} 23. Nf3 {[%clk 0:01:03]}  Rxc5 {[%clk 0:01:04]} 24. Nxh4 {[%clk 0:01:00]}  Bb5 {[%clk 0:01:01]} 25. Bxb5 {[%clk 0:00:52]}  Rxb5 {[%clk 0:01:00]} 26. Nf3 {[%clk 0:00:42]}  Rc8 {[%clk 0:00:51]} 27. h4 {[%clk 0:00:41]}  Rbc5 {[%clk 0:00:32]} 28. Re2 {[%clk 0:00:39]}  Rc4 {[%clk 0:00:25]} 29. Rg1 {[%clk 0:00:38]}  Qc5 {[%clk 0:00:15]} 30. Qg2 {[%clk 0:00:29]}  d4 {[%clk 0:00:11]} 31. a3 {[%clk 0:00:22]}  Rc6 {[%clk 0:00:07]} 32. h5 {[%clk 0:00:22]}  Rb6 {[%clk 0:00:07]} 33. hxg6 {[%clk 0:00:20]}  Qxa3 {[%clk 0:00:06]} 34. gxf7+ {[%clk 0:00:20]}  Kf8 {[%clk 0:00:06]} 35. b3 {[%clk 0:00:11]}  Ra4 {[%clk 0:00:07]} 36. c4 {[%clk 0:00:03]}  Qa1+ {[%clk 0:00:07]} 37. Kc2 {[%clk 0:00:02]}  Qc3+ {[%clk 0:00:08]} 38. Kd1 {[%clk 0:00:01]}  Ra1# {[%clk 0:00:08]} 0-1


[Site "https://www.chess.com"]